Cogmind - Beta 10.2 @@@ ROGUE MODE // 2021.08.27 @ 16:24:14 Player: Pitt Result: Destroyed by G-34 Mercenary with Small Laser Performance ------------- Evolutions (1) 500 Regions Visited (2) 400 Robots Destroyed (21) 105 Value Destroyed (507) 507 Prototype IDs (0) 0 Alien Tech Used (0) 0 Bonus (0) 0 TOTAL SCORE: 1512 Bonus ------- None Cogmind --------- Core Integrity 0/400 Matter 213/300 Energy 19/100 System Corruption 0% Temperature Cool (24) Movement Core (50) Location -9/Materials Parts ------- > --- POWER (1) -------- (None) > --- PROPULSION (3) --- (None) > --- UTILITY (2) ------ (None) > --- WEAPON (3) ------- (None) > --- INVENTORY (4) ---- Light Ion Engine Improved Signal Interpreter Improved Terrain Scanner Peak State ------------ > --- POWER ------------ Ion Engine > --- PROPULSION ------- Aluminum Leg Aluminum Leg Aluminum Leg > --- UTILITY ---------- Small Storage Unit Seismic Analyzer > --- WEAPON ----------- Small Laser Beam Cannon Particle Cannon > --- INVENTORY -------- Light Ion Engine Hover Unit VTOL Module Improved Terrain Scanner Assault Rifle Mining Laser [Rating: 10] Favorites ----------- Power Ion Engine Engine Ion Engine Propulsion Aluminum Leg Leg Aluminum Leg Hover Unit Hover Unit Utility Seismic Analyzer Device Improved Terrain Scanner Storage Small Storage Unit Processor Seismic Analyzer Protection Medium Armor Plating Weapon Assault Rifle Energy Gun EM Pulse Gun Energy Cannon Beam Cannon Ballistic Gun Assault Rifle Ballistic Cannon Light Cannon Launcher Grenade Launcher Special Weapon Mining Laser Build | -11 -10 -9 ------- Run | Scr Mat Mat Slots Evolved 2 | . . 2 Power . | . . . Propulsion 1 | . . 1 Utility . | . . . Weapon 1 | . . 1 Parts Attached 25 | 8 4 13 Power 2 | 2 . . Engine 2 | 2 . . Core . | . . . Reactor . | . . . Propulsion 7 | 2 2 3 Treads . | . . . Leg 6 | 2 1 3 Wheel . | . . . Hover 1 | . 1 . Flight . | . . . Utility 6 | 2 . 4 Device 1 | 1 . . Storage 1 | . . 1 Processor 2 | 1 . 1 Hackware . | . . . Protection 2 | . . 2 Artifact . | . . . Weapon 10 | 2 2 6 Energy Gun 2 | 1 . 1 Energy Cannon 2 | . . 2 Ballistic Gun 3 | 1 1 1 Ballistic Cannon 1 | . . 1 Launcher 1 | . 1 . Special Weapon 1 | . . 1 Impact Weapon . | . . . Slashing Weapon . | . . . Piercing Weapon . | . . . Special Melee Weapon . | . . . Unidentified Prototypes . | . . . Parts Lost 12 | . 2 10 Power . | . . . Propulsion 2 | . . 2 Utility 2 | . . 2 Weapon 8 | . 2 6 Highest Loss Streak 10 | . 1 10 Average Slot Usage (%) 88 | . 95 79 Engine 11 | . 14 8 Leg 24 | . 26 22 Hover 1 | . . 2 Device 8 | . 14 . Storage 3 | . . 8 Processor 12 | . 14 9 Energy Gun 8 | . 9 7 Energy Cannon 5 | . . 12 Ballistic Gun 8 | . 10 4 Launcher 1 | . 3 . Naked Turns 5 | . . 5 Heaviest Build 17 | 10 11 17 Greatest Support 30 | 20 20 30 Greatest Overweight (x) 2 | . 1 2 Average Overweight (x) . | . . . Largest Inventory Capacity 6 | 4 4 6 Average Capacity 4 | 4 4 5 Most Carried 6 | 4 4 6 Average Carried 4 | 2 3 4 Final Capacity 4 | 4 4 4 Final Carried 4 | 4 4 3 Class Distribution -------------------- 76% | Mutant 12% | Scavenger-Gunner 11% | Scavenger-Skirmisher Dominant Class ---------------- Mutant | -10/Materials Scavenger-Gunner | -9/Materials Resources | -11 -10 -9 ----------- Run | Scr Mat Mat Matter Collected 537 | 203 85 249 Remotely . | . . . Salvage Created 592 | 56 192 344 Parts 45 | 11 9 25 Haulers Intercepted 1 | . . 1 Recyclers Shooed 1 | . . 1 Parts Field Recycled . | . . . Retrieved Matter . | . . . Parts Self-Destructed . | . . . Prevented . | . . . Kills | -11 -10 -9 ------- Run | Scr Mat Mat Combat Hostiles Destroyed 12 | . 4 8 Guns 3 | . 1 2 Cannons 5 | . . 5 AOE 4 | . 3 1 Classes Destroyed 9 | 1 4 4 Worker 1 | . . 1 Builder 3 | . 2 1 Tunneler 2 | 2 . . Hauler 1 | . . 1 Recycler 1 | . 1 . Watcher 1 | . 1 . Swarmer 3 | . . 3 Grunt 8 | . 4 4 Sentry 1 | . . 1 Best Kill Streak 6 | 1 6 3 Combat Bots Only 3 | . 2 3 Max Kills in Single Turn 3 | 1 3 1 Gunslinging . | . . . Exploded 1 | . 1 1 Melee . | . . . Uniques/NPCs Destroyed . | . . . Combat | -11 -10 -9 -------- Run | Scr Mat Mat Damage Taken 1760 | . 464 1296 Core 518 | . 113 405 Absorbed by Shields . | . . . Core Remaining (%) 77 | 100 54 . Volleys Fired 79 | 12 27 40 Largest 3 | 1 1 3 Hottest 168 | 40 30 168 Shots Fired 114 | 12 27 75 Gun 51 | 12 8 31 Cannon 40 | . . 40 Launcher 19 | . 19 . Special 4 | . . 4 Kinetic 25 | . 8 17 Thermal 58 | . . 58 Explosive 19 | . 19 . Electromagnetic 12 | 12 . . Robot Hit Streak 7 | 6 3 7 Robot Miss Streak 5 | 2 3 5 Penetration Max . | . . . Secondary Targets . | . . . Shots Hit Robots 55 | 8 9 38 Core Hits 36 | 3 18 15 Critical Hits 1 | . . 1 Critical Kills . | . . . Critical Parts Destroyed . | . . . Melee Attacks . | . . . Impact . | . . . Slashing . | . . . Piercing . | . . . Sneak Attacks . | . . . Combat Hostiles . | . . . Follow-up Attacks . | . . . Damage Inflicted 1367 | 139 619 609 Guns 366 | 104 71 191 Cannons 250 | . . 250 Explosions 734 | 35 531 168 Melee . | . . . Ramming 17 | . 17 . Kinetic 209 | . 71 138 Thermal 380 | 35 42 303 Explosive 657 | . 489 168 Electromagnetic 104 | 104 . . Impact . | . . . Slashing . | . . . Piercing . | . . . Highest Corruption . | . . . Average Corruption . | . . . Corruption Purged . | . . . Overload Shots . | . . . Overflow Damage 48 | . 33 15 Projectiles . | . . . Explosions 48 | . 33 15 Melee . | . . . Knockbacks 2 | . 2 . Impact 2 | . 2 . Kinetic . | . . . Secondary . | . . . Self-Inflicted Damage 166 | . 94 72 Shots 3 | . 2 1 Rammed 4 | . 4 . Targets Rammed 9 | . 8 1 Kicked 5 | . 4 1 Crushed . | . . . Highest Temperature 433 | . 4 433 Average Temperature 144 | . 4 148 Received Heat Transfer 450 | . 207 243 Effects 3 | . . 3 Shutdowns 1 | . . 1 Energy Bleed 1 | . . 1 Damage (major) 1 | . . 1 Siege Activations . | . . . Robots Corrupted . | . . . Combat Hostiles . | . . . Parts Fried . | . . . Impact Corruptions . | . . . Robots Melted . | . . . Combat Hostiles . | . . . Parts Melted . | . . . Heat Transferred 794 | 100 50 644 Parts Sabotaged . | . . . Parts Stolen . | . . . Parts Stripped . | . . . Power Chain Reactions 1 | 1 . . Missiles Intercepted . | . . . Alert | -11 -10 -9 ------- Run | Scr Mat Mat Peak Influence 283 | 10 168 283 Initial 6 | . 6 . Average 52 | 4 27 111 Maximum Alert Level 1 | . . 1 Low Security (%) 93 | 100 100 82 Level 1 6 | . . 17 Level 2 . | . . . Level 3 . | . . . Level 4 . | . . . Level 5 . | . . . High Security . | . . . Max Security . | . . . Squads Dispatched 4 | . 1 3 Investigation 3 | . 1 2 Extermination . | . . . Reinforcement 1 | . . 1 Assault . | . . . Garrison . | . . . Intercept . | . . . Construction Impeded 1 | . . 1 Haulers Reinforced . | . . . Stealth | -11 -10 -9 --------- Run | Scr Mat Mat Distress Signals 3 | . 1 2 Communications Jammed . | . . . Distress Signals . | . . . Times Spotted 23 | . 7 16 Peak Tracking Total 8 | . 3 8 Tactical Retreats . | . . . Traps | -11 -10 -9 ------- Run | Scr Mat Mat Traps Triggered 1 | . 1 . Indirectly . | . . . Trap Hack Attempts . | . . . Triggered . | . . . Disarmed . | . . . Reprogrammed . | . . . Reused . | . . . Traps Extracted . | . . . Installed . | . . . Triggered . | . . . Machines | -11 -10 -9 ---------- Run | Scr Mat Mat Machines Disabled 8 | . 4 4 Max in Single Turn 2 | . 2 2 Machines Sabotaged . | . . . Garrisons Compromised . | . . . Overloaded Fab Kills . | . . . Fab Network Shutdowns . | . . . Hacking | -11 -10 -9 --------- Run | Scr Mat Mat Machines Accessed 9 | . 3 6 Terminals 8 | . 3 5 Fabricators . | . . . Repair Stations . | . . . Recycling Units . | . . . Scanalyzers 1 | . . 1 Garrison Access . | . . . Total Hacks 38 | . 8 30 Successful 19 | . 3 16 Failed 19 | . 5 14 Catastrophic 5 | . 2 3 Database Lockouts . | . . . Manual 27 | . 8 19 Terminals 34 | . 8 26 Fabricators . | . . . Repair Stations . | . . . Recycling Units . | . . . Scanalyzers 4 | . . 4 Garrison Access . | . . . Terminal Hacks 9 | . 2 7 Part Schematic 1 | . 1 . Level Access Points 1 | . . 1 Emergency Access Points 1 | . . 1 Terminal Index 2 | . 1 1 Locate Traps 1 | . . 1 Patrol Status 1 | . . 1 Recall Reinforcements 1 | . . 1 Zone Layout 1 | . . 1 Fabricator Hacks . | . . . Repair Station Hacks . | . . . Recycling Unit Hacks . | . . . Scanalyzer 4 | . . 4 Insert Component 2 | . . 2 Analyze 2 | . . 2 Garrison Access Hacks . | . . . Unauthorized Hacks 6 | . 1 5 Terminals 6 | . 1 5 Botnet 4 | . 1 3 Detonate 1 | . . 1 Operators 1 | . . 1 Fabricators . | . . . Repair Stations . | . . . Recycling Units . | . . . Scanalyzers . | . . . Garrison Access . | . . . Data Cores Recovered . | . . . Used . | . . . Hacking Detections 8 | . 3 5 Full Trace Events 3 | . . 3 Feedback Events . | . . . Feedback Blocked . | . . . Robot Schematics Acquired . | . . . Robots Built . | . . . Matter . | . . . Time . | . . . Total Robot Build Rating . | . . . Part Schematics Acquired 3 | . 1 2 Parts Built . | . . . Matter . | . . . Time . | . . . Total Part Build Rating . | . . . Parts Repaired . | . . . Time . | . . . Parts Recycled . | . . . Recycled Matter . | . . . Retrieved Matter . | . . . Retrieved Components . | . . . Parts Scanalyzed 2 | . . 2 Part Schematics Acquired 2 | . . 2 Parts Damaged . | . . . Bothacking | -11 -10 -9 ------------ Run | Scr Mat Mat Used RIF Installer . | . . . Robots Hacked . | . . . Non-combat . | . . . Combat . | . . . Robot Hacks Applied . | . . . Relay Couplers Released . | . . . Robots Rewired . | . . . Allies Hacked . | . . . Hacks Repelled . | . . . Allies | -11 -10 -9 -------- Run | Scr Mat Mat Total Allies . | . . . Largest Group . | . . . Highest-Rated Group . | . . . Highest-Rated Ally . | . . . Total Orders . | . . . Ally Attacks . | . . . Total Damage . | . . . Kills . | . . . Allies Corrupted . | . . . Allies Melted . | . . . Intel | -11 -10 -9 ------- Run | Scr Mat Mat Robot Analysis Total . | . . . Derelict Logs Recovered . | . . . Drone Launches . | . . . Drone Recoveries . | . . . Exploration | -11 -10 -9 ------------- Run | Scr Mat Mat Turns Passed 945 | 170 449 326 Spaces Moved 381 | 107 119 155 Core 46 | 3 . 43 Treads . | . . . Legs 291 | 104 97 90 Wheels . | . . . Hover 44 | . 22 22 Flight . | . . . Fastest Speed 50 | 50 120 50 Average Speed 114 | 118 121 105 Slowest Speed 190 | 120 130 190 Overloaded Moves . | . . . Propulsion Burnouts . | . . . Robots Hopped . | . . . Cave-ins Triggered 1 | . . 1 Exploration Rate (%) 14 | 7 20 16 Regions Visited 2 Branch Regions . Pre-discovered Areas . | . . . Known Exits Taken . | . . . Unknown Exits Taken 2 | 1 1 . Scrap Searched . | . . . Spaces Dug 15 | . 12 3 Terrain Destroyed 181 | 6 147 28 Melee . | . . . Projectile 3 | . . 3 AOE 178 | 6 147 25 Terrain Rammed . | . . . Walls Destroyed . | . . . Machines Disabled . | . . . Actions | -11 -10 -9 --------- Run | Scr Mat Mat Total 776 | 136 394 246 Wait 255 | . 232 23 Move 380 | 106 119 155 Hop . | . . . Pick Up 15 | 7 2 6 Fast Attach 13 | 7 1 5 Attach 5 | . 1 4 Detach 2 | . . 2 Swap 7 | 1 2 4 Drop 12 | 3 3 6 Fire 79 | 12 27 40 Melee . | . . . Ram . | . . . Kick 8 | . 7 1 Crush . | . . . Escape Stasis . | . . . Rewire . | . . . Trap . | . . . Miscellaneous . | . . . Route ------- -11/Scrapyard -10/Materials -9/Materials (discovered 3 exits: Mat x3) History --------- Turn | Location | Event 14 | -11/Scrapyard | Discovered new exit (range 15) 171 | -11/Scrapyard | Entered Materials 305 | -10/Materials | Build established: Mutant 535 | -10/Materials | Discovered new exit (range 11) 620 | -10/Materials | Entered another Materials area 620 | -9/Materials | Evolved 2 slots: Propulsion x1, Weapon x1 843 | -9/Materials | Identified exit to Materials 892 | -9/Materials | Core integrity fell below 50% 943 | -9/Materials | Crushed by falling debris 943 | -9/Materials | Core integrity fell below 20% 946 | -9/Materials | Destroyed by G-34 Mercenary with Small Laser Last Messages --------------- 00911_ U-05 Engineer builds a Wall. 00912_ K-01 Serf collects debris. 00915_ U-05 Engineer lays Concrete. 00915_ K-01 Serf collects debris. 00916_ U-05 Engineer builds a Door. 00918_ K-01 Serf collects debris. 00919_ Med. Armor Plating destroyed. 00921_ K-01 Serf collects debris. 00922_ Assault Rifle destroyed. 00922_ Med. Armor Plating destroyed. 00942_ Connecting with Terminal... >>Layout(Zone) Retrieving Zone 4S layout... Downloaded map data. 00942_ ALERT: Suspicious activity at Terminal M005. Dispatching Investigation squad. 00943_ The unstable cave ceiling collapses. 00943_ Crushed by falling debris. 00943_ Mining Laser destroyed. 00946_ Processing Tank disabled. Map ----- +----------------------------------------------------+ | ?????????????????????????????????????????????????? | | ?????????????????????????????????????????????????? | | ?????????????????????????????????????????????????? | | ?????????????????????????????????????????????????? | | ?????????????????????????????????????????????????? | | ?????????????????????????????????????????????????? | | ?????????????????????????????????????????????????? | | ?????????????????????????????????????????????????? | | ?????????????????????????????????????????????????? | | ????????????? #?????# < #???# ?????? | | ????????????? ##?????# #???# ?????? | | ????????????? #??????# #???# ?????? | | ?????????????##########??????##### #???# ?????? | | ?????????????#???????????????????# #???# ?????? | | ?????????????#??????#######?????## o##??# ?????? | | ?????????????######## ####### #### ?????? | | ????????????? ?????? | | ????????##+########## ?????? | | ????????# ## ?????? | | ????????# ## ###+### ######?????? | | ????????# ####+#### #######??????????? | | ????????# ##g ##" #????????????????? | | ????????# g;g ##" !#????????????????? | | ?????????### ####Y ! ##" #????????????????? | | ?????????# # ##T #????????????????? | | ????????## !! # @##" #????????????????? | | ????????# !! # " " #" #????????????????? | | ????????# # """ ##" #????????????????? | | ????????# # """ ## #??????#####?????? | | ????????## %! = # """ #######??????# ?????? | | ????????# % # """ #????????????# ?????? | | ????????## = # #????????????# ?????? | | ?????????# ##/#### #???????????## ?????? | | ???????? *%######+############# ?????? | | ??????# # ^ = ^ ?????? | | ??????# = #^ ^ ^ ?????? | | ??????# # ^ ^ ^ ?????? | | ??????# ?# """" ###/####/### ?????? | | ??????? ???#^ """" #?# #?## #?????? | | ?????######+## """ ### """ #??# #?????? | | ????? ! % # ""???????????????? | | ????? % * + ""???????????????? | | ????? = =!= #???????????????????? | | ????? ###+######"T"#"T"### #???????????????????? | | ????? #????????#########?# #???????????????????? | | ????? #??????????????????# #???????????????????? | | ##### #??????????????????# #???????????????????? | | # #??????????????????# #???????????????????? | | # #??????????????????# #???????????????????? | | # #??????????????????# #???????????????????? | +----------------------------------------------------+ Best States ------------- Heat Dissipation 28 Energy Generation 10 Energy Capacity 250 Matter Stores 261 Matter Capacity 300 Sight Range 16 Terrain Scan Range 16 Terrain Scan Density 60 Armor Coverage 450 Evasion (%) 49 Item Schematics ----------------- Hover Unit | -10/Materials | Hacked VTOL Module | -9/Materials | Scanalyzed Particle Cannon | -9/Materials | Scanalyzed Robot Schematics ------------------ None Fabricated ------------ Nothing Alien Tech Used ----------------- None Achievements -------------- None Challenges ------------ None Game ------ Seed BiocellSalvageClaws Manual? 0 Play Time 00:17:30 Cumulative 111.2 hours Start 2021.08.27 @ 16:08:14 End 2021.08.27 @ 16:24:14 Sessions 1 Manual Loads 0 Difficulty Rogue Special Mode None Game No. 178 Rogue 178 Adventurer 0 Explorer 0 Win Type - Total 0 Types 0/0/0/0/0/0/0/0/0 Lore% 49 Gallery% 54 Achievement% 35 Wizard Run 0 Options --------- ASCII 0 Keyboard 0 Movement Mouse Keybinds 0 Fullscreen 1 Font 12/Smallcaps Map View 83x54 Tactical HUD 1 Map Filters NONE Filters NONE Steam 1 RUN: 8c56b9ca-5ac7-427c-b690-c4b4d0c8a9fd